[Event "Reykjavik Open 2025"]
[Site "Reykjavik"]
[Date "2025.04.14"]
[Round "8.35"]
[White "Kadovic, Tamara"]
[Black "De Winter, Eric"]
[Result "1/2-1/2"]
[Annotator "NA RC"]
[ECO "B08"]
[WhiteElo "1612"]
[BlackElo "1771"]
[PlyCount "52"]
[EventDate "2025.04.09"]
[EventType "swiss"]
[EventCountry "ISL"]
[SourceTitle "playchess.com"]
[Source "ChessBase"]
[SourceQuality "1"]
[TimeControl "40/5400+30:1800+30"]

1. e4 {[%emt 0:00:03]} d6 {[%emt 0:00:13]} 2. d4 {[%emt 0:00:32]} g6 {[%emt 0:00:13]} 3. Nf3 {[%emt 0:02:48]} Bg7 {[%emt 0:00:24]} 4. Nc3 {[%emt 0:01:06]} Nf6 {[%emt 0:00:38]} 5. Bd3 {[%emt 0:03:03]} Bg4 {[%emt 0:03:57]} 6. h3 {[%emt 0:04:29]} Bxf3 {[%emt 0:01:18]} 7. Qxf3 {[%emt 0:02:55]} Nc6 {[%emt 0:12:31]} 8. Be3 {[%emt 0:07:42]} Nd7 {[%emt 0:04:43]} 9. Ne2 {[%emt 0:06:22]} Nb4 {[%emt 0:12:02]} 10. Bc4 {[%emt 0:09:23]} O-O {[%emt 0:09:20]} 11. Bb3 {[%emt 0:00:36]} c5 {[%emt 0:11:56]} 12. O-O-O {[%emt 0:04:48]} cxd4 {[%emt 0:02:56]} 13. Bxd4 {[%emt 0:03:06]} Ne5 {[%emt 0:08:24]} 14. Qg3 {[%emt 0:08:05]} Nbc6 {[%emt 0:00:43]} 15. Bc3 {[%emt 0:02:10]} Qc7 {[%emt 0:06:03]} 16. f4 {[%emt 0:04:43]} Nd7 {[%emt 0:00:14]} 17. Bxg7 {[%emt 0:00:37]} Kxg7 {[%emt 0:00:07]} 18. f5 {[%emt 0:03:04]} Nce5 {[%emt 0:01:21]} 19. fxg6 {[%emt 0:04:18]} hxg6 {[%emt 0:00:25]} 20. h4 {[%emt 0:01:41]} Nc5 {[%emt 0:05:11]} 21. Rd4 {[%emt 0:07:40]} Nxb3+ {[%emt 0:01:03]} 22. Qxb3 {[%emt 0:01:46]} Rh8 {[%emt 0:03:04]} 23. Nf4 {[%emt 0:07:48]} Rac8 {[%emt 0:05:04]} 24. h5 {[%emt 0:03:43]} Qc5 {[%emt 0:01:38]} 25. Rd2 {[%emt 0:04:06]} Qc4 {[%emt 0:01:12]} 26. Qxc4 {[%emt 0:00:38]} Rxc4 {[%emt 0:00:47]} 1/2-1/2

[Event "Reykjavik Open 2025"]
[Site "Reykjavik"]
[Date "2025.04.14"]
[Round "8.36"]
[White "Joel Paul Ganta"]
[Black "Lu, Miaoyi"]
[Result "0-1"]
[Annotator "RC"]
[ECO "E20"]
[WhiteElo "2170"]
[BlackElo "2429"]
[PlyCount "54"]
[EventDate "2025.04.09"]
[EventType "swiss"]
[EventCountry "ISL"]
[SourceTitle "playchess.com"]
[Source "ChessBase"]
[SourceQuality "1"]
[TimeControl "40/5400+30:1800+30"]

1. d4 {[%emt 0:00:02]} Nf6 {[%emt 0:00:05]} 2. c4 {[%emt 0:00:06]} e6 {[%emt 0:00:03]} 3. Nf3 {[%emt 0:00:03]} d5 {[%emt 0:00:06]} 4. Nc3 {[%emt 0:00:03]} Bb4 {[%emt 0:04:09]} 5. g3 {[%emt 0:01:00]} O-O {[%emt 0:00:39]} 6. Bg2 {[%emt 0:00:02]} dxc4 {[%emt 0:00:05]} 7. O-O {[%emt 0:00:03]} Nc6 {[%emt 0:00:10]} 8. Re1 {[%emt 0:00:04]} Rb8 {[%emt 0:06:25]} 9. e4 {[%emt 0:00:43]} b5 {[%emt 0:00:53]} 10. a3 {[%emt 0:00:03]} Be7 {[%emt 0:00:30]} 11. d5 {[%emt 0:03:58]} exd5 {[%emt 0:01:02]} 12. exd5 {[%emt 0:04:40]} Na5 {[%emt 0:00:08]} 13. Nd4 {[%emt 0:00:03]} Bc5 {[%emt 0:14:44]} 14. Ncxb5 {[%emt 0:28:33]} a6 {[%emt 0:13:46]} 15. Bd2 {[%emt 0:01:40]} Bg4 {[%emt 0:00:48]} 16. f3 {[%emt 0:31:01]} axb5 {[%emt 0:00:53]} 17. Bxa5 {[%emt 0:00:49]} Qxd5 {[%emt 0:00:04]} 18. Bc3 {[%emt 0:03:30]} Bh5 {[%emt 0:08:09]} 19. Kh1 {[%emt 0:00:33]} Rbd8 {[%emt 0:03:20]} 20. Nc2 {[%emt 0:07:59]} Qf5 {[%emt 0:07:25]} 21. Nd4 {[%emt 0:00:21]} Bxd4 {[%emt 0:02:46]} 22. Bxd4 {[%emt 0:00:03]} c5 {[%emt 0:00:04]} 23. g4 {[%emt 0:02:33]} Nxg4 {[%emt 0:00:43]} 24. fxg4 {[%emt 0:00:09]} Bxg4 {[%emt 0:00:03]} 25. Be4 {[%emt 0:01:38]} Bxd1 {[%emt 0:03:36]} 26. Bxf5 {[%emt 0:00:05]} Bf3+ {[%emt 0:00:03]} 27. Kg1 {[%emt 0:00:06]} Rxd4 {[%emt 0:01:26]} 0-1

[Event "Reykjavik Open 2025"]
[Site "Reykjavik"]
[Date "2025.04.14"]
[Round "8.37"]
[White "Niermann, Tristan"]
[Black "Villiers, Thomas"]
[Result "1-0"]
[Annotator "RC"]
[ECO "D45"]
[WhiteElo "2427"]
[BlackElo "2154"]
[PlyCount "107"]
[EventDate "2025.04.09"]
[EventType "swiss"]
[EventCountry "ISL"]
[SourceTitle "playchess.com"]
[Source "ChessBase"]
[SourceQuality "1"]
[TimeControl "40/5400+30:1800+30"]

1. d4 {[%emt 0:00:03]} d5 {[%emt 0:00:14]} 2. c4 {[%emt 0:00:06]} c6 {[%emt 0:00:20]} 3. Nc3 {[%emt 0:00:06]} Nf6 {[%emt 0:00:13]} 4. e3 {[%emt 0:00:05]} e6 {[%emt 0:00:48]} 5. Nf3 {[%emt 0:00:10]} Nbd7 {[%emt 0:00:53]} 6. Be2 {[%emt 0:00:09]} Bd6 {[%emt 0:00:34]} 7. O-O {[%emt 0:00:12]} O-O {[%emt 0:01:06]} 8. b3 {[%emt 0:00:27]} b6 {[%emt 0:02:46]} 9. Bb2 {[%emt 0:00:16]} Bb7 {[%emt 0:00:11]} 10. Bd3 {[%emt 0:00:16]} Re8 {[%emt 0:06:16]} 11. Re1 {[%emt 0:00:13]} e5 {[%emt 0:01:39]} 12. dxe5 {[%emt 0:00:20]} Nxe5 {[%emt 0:00:12]} 13. cxd5 {[%emt 0:00:06]} Nxd3 {[%emt 0:01:01]} 14. Qxd3 {[%emt 0:00:10]} cxd5 {[%emt 0:00:25]} 15. Rac1 {[%emt 0:08:36]} a6 {[%emt 0:08:03]} 16. Ne2 {[%emt 0:01:27]} Qe7 {[%emt 0:02:09]} 17. Ng3 {[%emt 0:02:07]} Bb4 {[%emt 0:01:25]} 18. Red1 {[%emt 0:03:35]} Rac8 {[%emt 0:01:14]} 19. Ng5 {[%emt 0:10:23]} Ne4 {[%emt 0:02:40]} 20. N5xe4 {[%emt 0:00:41]} dxe4 {[%emt 0:00:08]} 21. Qd4 {[%emt 0:00:27]} f6 {[%emt 0:19:43]} 22. Qxb6 {[%emt 0:13:34]} Rxc1 {[%emt 0:01:14]} 23. Rxc1 {[%emt 0:00:36]} Rc8 {[%emt 0:00:13]} 24. Rxc8+ {[%emt 0:03:01]} Bxc8 {[%emt 0:00:05]} 25. Qb8 {[%emt 0:04:50]} Qb7 {[%emt 0:03:06]} 26. Qf4 {[%emt 0:02:57]} Qd5 {[%emt 0:00:34]} 27. Qxe4 {[%emt 0:01:09]} Qxe4 {[%emt 0:00:10]} 28. Nxe4 {[%emt 0:00:06]} Bf5 {[%emt 0:00:31]} 29. f3 {[%emt 0:00:08]} Kf7 {[%emt 0:01:53]} 30. Kf2 {[%emt 0:01:27]} Ke6 {[%emt 0:00:14]} 31. Ke2 {[%emt 0:00:33]} Bg6 {[%emt 0:01:09]} 32. a3 {[%emt 0:01:51]} Be7 {[%emt 0:01:43]} 33. Nc3 {[%emt 0:01:07]} Bd6 {[%emt 0:01:47]} 34. g3 {[%emt 0:01:06]} Bc2 {[%emt 0:00:17]} 35. b4 {[%emt 0:00:15]} Be5 {[%emt 0:00:14]} 36. e4 {[%emt 0:11:51]} g5 {[%emt 0:07:12]} 37. Kd2 {[%emt 0:19:52]} Bb3 {[%emt 0:00:52]} 38. Ke3 {[%emt 0:00:41]} f5 {[%emt 0:01:52]} 39. f4 {[%emt 0:01:31]} gxf4+ {[%emt 0:00:12]} 40. gxf4 {[%emt 0:00:06]} Bxc3 {[%emt 0:16:39]} 41. exf5+ {[%emt 0:30:20]} Kxf5 {[%emt 0:30:06]} 42. Bxc3 {[%emt 0:00:05]} Kg4 {[%emt 0:01:45]} 43. Be5 {[%emt 0:02:11]} Bc2 {[%emt 0:01:01]} 44. Kd4 {[%emt 0:00:46]} Kh3 {[%emt 0:00:12]} 45. Kc5 {[%emt 0:02:21]} Bf5 {[%emt 0:00:12]} 46. Kb6 {[%emt 0:00:08]} Kxh2 {[%emt 0:00:06]} 47. Kxa6 {[%emt 0:00:10]} Kg3 {[%emt 0:00:06]} 48. b5 {[%emt 0:00:11]} h5 {[%emt 0:00:04]} 49. Bf6 {[%emt 0:00:38]} Kxf4 {[%emt 0:00:11]} 50. b6 {[%emt 0:00:31]} Be4 {[%emt 0:00:07]} 51. b7 {[%emt 0:00:28]} Bxb7+ {[%emt 0:00:02]} 52. Kxb7 {[%emt 0:00:06]} Ke4 {[%emt 0:00:01]} 53. a4 {[%emt 0:00:07]} Kd5 {[%emt 0:00:01]} 54. a5 {[%emt 0:00:07]} 1-0

[Event "Reykjavik Open 2025"]
[Site "Reykjavik"]
[Date "2025.04.14"]
[Round "8.38"]
[White "Yankelevich, Lev"]
[Black "Ptacnikova, Lenka"]
[Result "1-0"]
[Annotator "RC"]
[ECO "D40"]
[WhiteElo "2413"]
[BlackElo "2142"]
[PlyCount "93"]
[EventDate "2025.04.09"]
[EventType "swiss"]
[EventCountry "ISL"]
[SourceTitle "playchess.com"]
[Source "ChessBase"]
[SourceQuality "1"]
[TimeControl "40/5400+30:1800+30"]

1. d4 {[%emt 0:00:03]} Nf6 {[%emt 0:00:06]} 2. c4 {[%emt 0:00:07]} e6 {[%emt 0:00:09]} 3. Nf3 {[%emt 0:00:09]} d5 {[%emt 0:00:37]} 4. Nc3 {[%emt 0:00:19]} c5 {[%emt 0:00:29]} 5. e3 {[%emt 0:00:51]} a6 {[%emt 0:07:38]} 6. dxc5 {[%emt 0:05:43]} Bxc5 {[%emt 0:00:24]} 7. a3 {[%emt 0:00:09]} dxc4 {[%emt 0:01:45]} 8. Qxd8+ {[%emt 0:01:29]} Kxd8 {[%emt 0:00:02]} 9. Bxc4 {[%emt 0:00:09]} b5 {[%emt 0:00:17]} 10. Be2 {[%emt 0:01:01]} Bb7 {[%emt 0:00:54]} 11. Ne5 {[%emt 0:14:57]} Ke7 {[%emt 0:01:04]} 12. f3 {[%emt 0:00:32]} Nbd7 {[%emt 0:18:53]} 13. Nd3 {[%emt 0:00:55]} Bd6 {[%emt 0:12:00]} 14. e4 {[%emt 0:02:52]} Nc5 {[%emt 0:04:37]} 15. Be3 {[%emt 0:03:19]} Nxd3+ {[%emt 0:01:23]} 16. Bxd3 {[%emt 0:00:07]} Nd7 {[%emt 0:01:52]} 17. f4 {[%emt 0:02:52]} Bc5 {[%emt 0:10:13]} 18. Ke2 {[%emt 0:00:56]} Bxe3 {[%emt 0:03:21]} 19. Kxe3 {[%emt 0:04:15]} Nb6 {[%emt 0:02:00]} 20. b3 {[%emt 0:06:11]} Rac8 {[%emt 0:02:59]} 21. Rhc1 {[%emt 0:00:19]} h6 {[%emt 0:02:43]} 22. g3 {[%emt 0:00:19]} Rhd8 {[%emt 0:00:43]} 23. Ne2 {[%emt 0:01:47]} Nd7 {[%emt 0:06:03]} 24. h4 {[%emt 0:04:08]} Nc5 {[%emt 0:08:34]} 25. Bc2 {[%emt 0:00:14]} Nd7 {[%emt 0:06:34]} 26. b4 {[%emt 0:05:14]} Nb6 {[%emt 0:00:21]} 27. Bd3 {[%emt 0:00:12]} Na4 {[%emt 0:01:11]} 28. Nd4 {[%emt 0:01:31]} Rxc1 {[%emt 0:01:27]} 29. Rxc1 {[%emt 0:00:01]} Rc8 {[%emt 0:00:15]} 30. Rxc8 {[%emt 0:02:33]} Bxc8 {[%emt 0:00:02]} 31. Nb3 {[%emt 0:00:02]} Kd6 {[%emt 0:03:31]} 32. Kd4 {[%emt 0:00:02]} f6 {[%emt 0:02:31]} 33. e5+ {[%emt 0:00:04]} fxe5+ {[%emt 0:00:37]} 34. fxe5+ {[%emt 0:00:02]} Kc7 {[%emt 0:00:38]} 35. Nd2 {[%emt 0:01:07]} Bb7 {[%emt 0:00:52]} 36. Be4 {[%emt 0:00:50]} Bxe4 {[%emt 0:00:34]} 37. Nxe4 {[%emt 0:00:02]} Kc6 {[%emt 0:00:11]} 38. Nd6 {[%emt 0:00:55]} Kd7 {[%emt 0:00:46]} 39. h5 {[%emt 0:00:32]} Nb2 {[%emt 0:00:47]} 40. Nb7 {[%emt 0:01:44]} Nc4 {[%emt 0:00:30]} 41. Nc5+ {[%emt 0:32:23]} Ke7 {[%emt 0:02:22]} 42. a4 {[%emt 0:00:00]} Nd2 {[%emt 0:04:29]} 43. a5 {[%emt 0:00:00]} Nf3+ {[%emt 0:00:18]} 44. Ke4 {[%emt 0:00:00]} Ng5+ {[%emt 0:01:58]} 45. Kf4 {[%emt 0:00:00]} Nf7 {[%emt 0:04:07]} 46. Nxa6 {[%emt 0:00:00]} Nd8 {[%emt 0:00:09]} 47. Nb8 {[%emt 0:00:00]} 1-0

[Event "Reykjavik Open 2025"]
[Site "Reykjavik"]
[Date "2025.04.14"]
[Round "8.39"]
[White "Thorhallsson, Throstur"]
[Black "Arruebarrena Rodriguez, Rafael"]
[Result "1-0"]
[Annotator "RC"]
[ECO "B47"]
[WhiteElo "2394"]
[BlackElo "2129"]
[PlyCount "135"]
[EventDate "2025.04.09"]
[EventType "swiss"]
[EventCountry "ISL"]
[SourceTitle "playchess.com"]
[Source "ChessBase"]
[SourceQuality "1"]
[TimeControl "40/5400+30:1800+30"]

1. e4 {[%emt 0:00:03]} c5 {[%emt 0:00:10]} 2. Nf3 {[%emt 0:00:07]} e6 {[%emt 0:00:09]} 3. d4 {[%emt 0:00:17]} cxd4 {[%emt 0:00:08]} 4. Nxd4 {[%emt 0:00:05]} Nc6 {[%emt 0:00:08]} 5. Nc3 {[%emt 0:00:07]} Qc7 {[%emt 0:00:06]} 6. Nb3 {[%emt 0:01:24]} Nf6 {[%emt 0:07:00]} 7. Bd3 {[%emt 0:00:50]} Be7 {[%emt 0:01:25]} 8. f4 {[%emt 0:01:00]} d6 {[%emt 0:00:53]} 9. Qf3 {[%emt 0:00:34]} O-O {[%emt 0:03:55]} 10. O-O {[%emt 0:04:28]} a5 {[%emt 0:16:45]} 11. Nb5 {[%emt 0:06:06]} Qb8 {[%emt 0:00:36]} 12. a3 {[%emt 0:07:39]} a4 {[%emt 0:03:55]} 13. N3d4 {[%emt 0:03:00]} e5 {[%emt 0:02:41]} 14. Nf5 {[%emt 0:07:26]} Bxf5 {[%emt 0:02:51]} 15. exf5 {[%emt 0:00:06]} d5 {[%emt 0:02:52]} 16. fxe5 {[%emt 0:01:32]} Nxe5 {[%emt 0:04:55]} 17. Qg3 {[%emt 0:00:57]} Bc5+ {[%emt 0:05:05]} 18. Kh1 {[%emt 0:00:55]} Nxd3 {[%emt 0:01:07]} 19. Qxd3 {[%emt 0:04:37]} Qe5 {[%emt 0:04:55]} 20. Bf4 {[%emt 0:11:28]} Qe4 {[%emt 0:00:55]} 21. Rae1 {[%emt 0:06:15]} Qxd3 {[%emt 0:01:19]} 22. cxd3 {[%emt 0:00:04]} Ra5 {[%emt 0:22:22]} 23. Nc3 {[%emt 0:11:56]} Bd4 {[%emt 0:02:57]} 24. Bd6 {[%emt 0:04:45]} Rc8 {[%emt 0:01:06]} 25. Bb4 {[%emt 0:00:10]} Raa8 {[%emt 0:01:46]} 26. Re7 {[%emt 0:00:56]} Ng4 {[%emt 0:03:04]} 27. Re2 {[%emt 0:04:36]} Re8 {[%emt 0:01:36]} 28. h3 {[%emt 0:00:31]} Nf6 {[%emt 0:07:09]} 29. Rfe1 {[%emt 0:03:04]} Rxe2 {[%emt 0:00:30]} 30. Rxe2 {[%emt 0:00:04]} Rd8 {[%emt 0:02:12]} 31. Nxa4 {[%emt 0:00:43]} h5 {[%emt 0:00:46]} 32. Bc5 {[%emt 0:03:16]} Bxc5 {[%emt 0:00:17]} 33. Nxc5 {[%emt 0:00:04]} b6 {[%emt 0:00:22]} 34. Nb3 {[%emt 0:00:37]} Rc8 {[%emt 0:00:30]} 35. g3 {[%emt 0:01:11]} Rc7 {[%emt 0:00:30]} 36. Kg2 {[%emt 0:00:13]} g6 {[%emt 0:00:56]} 37. Kf3 {[%emt 0:06:30]} g5 {[%emt 0:00:22]} 38. h4 {[%emt 0:00:23]} gxh4 {[%emt 0:00:16]} 39. gxh4 {[%emt 0:00:04]} Kg7 {[%emt 0:00:16]} 40. Kf4 {[%emt 0:00:29]} Ng4 {[%emt 0:00:43]} 41. Kg5 {[%emt 0:34:25]} Nf6 {[%emt 0:03:30]} 42. Nd4 {[%emt 0:00:00]} Rc1 {[%emt 0:01:29]} 43. Re7 {[%emt 0:00:00]} Rg1+ {[%emt 0:09:02]} 44. Kf4 {[%emt 0:00:00]} Rd1 {[%emt 0:00:22]} 45. Ne6+ {[%emt 0:00:00]} Kg8 {[%emt 0:00:10]} 46. Ng5 {[%emt 0:00:00]} Rf1+ {[%emt 0:00:54]} 47. Ke5 {[%emt 0:00:00]} Ng4+ {[%emt 0:00:39]} 48. Kxd5 {[%emt 0:00:00]} Rxf5+ {[%emt 0:00:06]} 49. Kc6 {[%emt 0:00:00]} Rf6+ {[%emt 0:01:31]} 50. Kb5 {[%emt 0:00:00]} Rd6 {[%emt 0:00:35]} 51. b4 {[%emt 0:00:00]} Rxd3 {[%emt 0:01:28]} 52. a4 {[%emt 0:00:00]} Ne3 {[%emt 0:01:51]} 53. Nxf7 {[%emt 0:00:00]} Nd5 {[%emt 0:02:57]} 54. Nh6+ {[%emt 0:03:58]} Kf8 {[%emt 0:00:11]} 55. Ra7 {[%emt 0:00:29]} Rf3 {[%emt 0:02:11]} 56. Kc4 {[%emt 0:06:37]} Ne7 {[%emt 0:01:40]} 57. Ra8+ {[%emt 0:02:16]} Kg7 {[%emt 0:00:12]} 58. Ra7 {[%emt 0:00:24]} Kf8 {[%emt 0:00:32]} 59. b5 {[%emt 0:01:26]} Rf4+ {[%emt 0:00:34]} 60. Kd3 {[%emt 0:00:12]} Rf6 {[%emt 0:01:15]} 61. Ra8+ {[%emt 0:00:54]} Kg7 {[%emt 0:00:10]} 62. Ra7 {[%emt 0:00:53]} Kf8 {[%emt 0:00:24]} 63. Rxe7 {[%emt 0:00:21]} Rxh6 {[%emt 0:03:20]} 64. Re5 {[%emt 0:00:21]} Rg6 {[%emt 0:03:22]} 65. Kd4 {[%emt 0:00:39]} Kf7 {[%emt 0:01:02]} 66. Kd5 {[%emt 0:00:24]} Rg4 {[%emt 0:00:20]} 67. Rxh5 {[%emt 0:00:26]} Rxa4 {[%emt 0:00:10]} 68. Kc6 {[%emt 0:00:08]} 1-0

[Event "Reykjavik Open 2025"]
[Site "Reykjavik"]
[Date "2025.04.14"]
[Round "8.40"]
[White "Willems, Niels"]
[Black "Elier, Ali"]
[Result "1-0"]
[Annotator "RC"]
[ECO "A17"]
[WhiteElo "2394"]
[BlackElo "2125"]
[PlyCount "65"]
[EventDate "2025.04.09"]
[EventType "swiss"]
[EventCountry "ISL"]
[SourceTitle "playchess.com"]
[Source "ChessBase"]
[SourceQuality "1"]
[TimeControl "40/5400+30:1800+30"]

1. c4 {[%emt 0:00:02]} e6 {[%emt 0:12:05]} 2. Nc3 {[%emt 0:00:09]} Nf6 {[%emt 0:00:09]} 3. Nf3 {[%emt 0:00:05]} d5 {[%emt 0:00:09]} 4. e3 {[%emt 0:00:06]} Be7 {[%emt 0:00:06]} 5. b3 {[%emt 0:00:31]} c5 {[%emt 0:00:34]} 6. cxd5 {[%emt 0:00:11]} exd5 {[%emt 0:00:05]} 7. d4 {[%emt 0:01:45]} cxd4 {[%emt 0:00:08]} 8. Nxd4 {[%emt 0:00:16]} Nc6 {[%emt 0:00:07]} 9. Bb2 {[%emt 0:02:11]} Qb6 {[%emt 0:03:03]} 10. Nxc6 {[%emt 0:04:31]} bxc6 {[%emt 0:02:27]} 11. Be2 {[%emt 0:00:35]} O-O {[%emt 0:06:30]} 12. O-O {[%emt 0:00:07]} Bb7 {[%emt 0:07:35]} 13. Rc1 {[%emt 0:01:30]} Rac8 {[%emt 0:10:50]} 14. Na4 {[%emt 0:02:17]} Qa5 {[%emt 0:03:08]} 15. Bc3 {[%emt 0:02:22]} Qc7 {[%emt 0:07:31]} 16. Bd4 {[%emt 0:00:55]} Bd6 {[%emt 0:03:27]} 17. g3 {[%emt 0:06:11]} Qe7 {[%emt 0:02:53]} 18. Nc5 {[%emt 0:06:12]} Ne4 {[%emt 0:04:34]} 19. Nxe4 {[%emt 0:01:27]} dxe4 {[%emt 0:08:15]} 20. Bc4 {[%emt 0:03:31]} c5 {[%emt 0:03:14]} 21. Bc3 {[%emt 0:01:08]} Be5 {[%emt 0:00:36]} 22. Qc2 {[%emt 0:06:14]} Rfd8 {[%emt 0:05:11]} 23. Rfd1 {[%emt 0:01:41]} Rxd1+ {[%emt 0:02:58]} 24. Rxd1 {[%emt 0:00:01]} Bxc3 {[%emt 0:04:57]} 25. Qxc3 {[%emt 0:00:02]} Rd8 {[%emt 0:04:11]} 26. Rxd8+ {[%emt 0:02:31]} Qxd8 {[%emt 0:00:04]} 27. Qe5 {[%emt 0:00:08]} g6 {[%emt 0:03:21]} 28. Kg2 {[%emt 0:00:12]} Qd7 {[%emt 0:02:26]} 29. Qxc5 {[%emt 0:02:30]} Qg4 {[%emt 0:00:13]} 30. Qxa7 {[%emt 0:01:32]} Qf3+ {[%emt 0:00:01]} 31. Kg1 {[%emt 0:00:11]} Bd5 {[%emt 0:00:02]} 32. Qb8+ {[%emt 0:00:10]} Kg7 {[%emt 0:00:02]} 33. Qe5+ {[%emt 0:00:06]} 1-0

[Event "Reykjavik Open 2025"]
[Site "Reykjavik"]
[Date "2025.04.14"]
[Round "8.41"]
[White "Heimisson, Hilmir Freyr"]
[Black "Le Pen, Steven"]
[Result "1-0"]
[Annotator "RC"]
[ECO "E51"]
[WhiteElo "2376"]
[BlackElo "2125"]
[PlyCount "127"]
[EventDate "2025.04.09"]
[EventType "swiss"]
[EventCountry "ISL"]
[SourceTitle "playchess.com"]
[Source "ChessBase"]
[SourceQuality "1"]
[TimeControl "40/5400+30:1800+30"]

1. d4 {[%emt 0:01:11]} Nf6 {[%emt 0:00:15]} 2. c4 {[%emt 0:00:35]} e6 {[%emt 0:00:50]} 3. Nc3 {[%emt 0:00:27]} Bb4 {[%emt 0:00:17]} 4. Bd2 {[%emt 0:01:18]} O-O {[%emt 0:01:34]} 5. Nf3 {[%emt 0:01:02]} d5 {[%emt 0:01:33]} 6. e3 {[%emt 0:00:38]} b6 {[%emt 0:06:53]} 7. cxd5 {[%emt 0:00:37]} exd5 {[%emt 0:00:19]} 8. Rc1 {[%emt 0:00:14]} c5 {[%emt 0:05:14]} 9. a3 {[%emt 0:14:55]} Bxc3 {[%emt 0:01:38]} 10. Bxc3 {[%emt 0:00:36]} c4 {[%emt 0:05:11]} 11. a4 {[%emt 0:14:26]} a6 {[%emt 0:05:59]} 12. Be2 {[%emt 0:04:16]} Nc6 {[%emt 0:06:18]} 13. Ne5 {[%emt 0:00:52]} Bb7 {[%emt 0:02:13]} 14. Bf3 {[%emt 0:01:50]} Qd6 {[%emt 0:05:24]} 15. O-O {[%emt 0:01:05]} b5 {[%emt 0:14:25]} 16. Nxc6 {[%emt 0:00:22]} Bxc6 {[%emt 0:02:16]} 17. Qd2 {[%emt 0:01:05]} Qe6 {[%emt 0:02:10]} 18. axb5 {[%emt 0:03:24]} axb5 {[%emt 0:01:59]} 19. Bb4 {[%emt 0:00:15]} Rfb8 {[%emt 0:02:47]} 20. Ra1 {[%emt 0:02:23]} Ne4 {[%emt 0:09:37]} 21. Bxe4 {[%emt 0:08:48]} dxe4 {[%emt 0:01:25]} 22. Bc5 {[%emt 0:01:26]} Bd5 {[%emt 0:01:26]} 23. Qb4 {[%emt 0:08:47]} Qc6 {[%emt 0:00:54]} 24. h3 {[%emt 0:01:16]} Ra6 {[%emt 0:01:55]} 25. Rxa6 {[%emt 0:01:32]} Qxa6 {[%emt 0:00:07]} 26. Bd6 {[%emt 0:00:05]} Ra8 {[%emt 0:04:41]} 27. Qc5 {[%emt 0:02:06]} Qc6 {[%emt 0:00:21]} 28. Rd1 {[%emt 0:00:48]} Rd8 {[%emt 0:02:35]} 29. Bc7 {[%emt 0:06:35]} Rd7 {[%emt 0:04:08]} 30. Qxc6 {[%emt 0:03:47]} Bxc6 {[%emt 0:00:01]} 31. Bb6 {[%emt 0:00:13]} f5 {[%emt 0:01:52]} 32. Bc5 {[%emt 0:07:20]} Kf7 {[%emt 0:00:59]} 33. Ra1 {[%emt 0:01:10]} Ke6 {[%emt 0:00:58]} 34. Ra6 {[%emt 0:00:57]} Kd5 {[%emt 0:00:02]} 35. f3 {[%emt 0:00:47]} Rc7 {[%emt 0:04:46]} 36. Kf2 {[%emt 0:00:23]} Ke6 {[%emt 0:02:46]} 37. Kg3 {[%emt 0:00:33]} g5 {[%emt 0:02:26]} 38. fxe4 {[%emt 0:00:57]} fxe4 {[%emt 0:00:01]} 39. Kg4 {[%emt 0:00:10]} Kd5 {[%emt 0:00:30]} 40. Rb6 {[%emt 0:09:56]} Rf7 {[%emt 0:00:52]} 41. Kxg5 {[%emt 0:08:16]} Rg7+ {[%emt 0:02:32]} 42. Kf6 {[%emt 0:00:32]} Rxg2 {[%emt 0:00:23]} 43. Rb8 {[%emt 0:01:29]} Rg6+ {[%emt 0:05:16]} 44. Ke7 {[%emt 0:07:09]} Rg7+ {[%emt 0:06:27]} 45. Kf6 {[%emt 0:06:30]} Rg6+ {[%emt 0:03:40]} 46. Ke7 {[%emt 0:00:01]} Rg7+ {[%emt 0:00:11]} 47. Kf8 {[%emt 0:00:06]} Rd7 {[%emt 0:00:34]} 48. Re8 {[%emt 0:02:01]} c3 {[%emt 0:01:03]} 49. bxc3 {[%emt 0:00:13]} Kc4 {[%emt 0:01:29]} 50. Bb4 {[%emt 0:00:45]} Kd3 {[%emt 0:01:19]} 51. Rc8 {[%emt 0:00:38]} Bd5 {[%emt 0:00:26]} 52. Ke8 {[%emt 0:01:07]} Rg7 {[%emt 0:00:35]} 53. Bf8 {[%emt 0:01:50]} Rg6 {[%emt 0:06:31]} 54. Rc5 {[%emt 0:00:51]} Bc4 {[%emt 0:00:19]} 55. Re5 {[%emt 0:02:27]} Kxe3 {[%emt 0:01:27]} 56. d5 {[%emt 0:02:41]} Kf4 {[%emt 0:00:36]} 57. d6 {[%emt 0:00:24]} Be6 {[%emt 0:05:19]} 58. Rxe6 {[%emt 0:02:46]} Rxe6+ {[%emt 0:00:02]} 59. Kf7 {[%emt 0:00:02]} Re5 {[%emt 0:01:04]} 60. d7 {[%emt 0:00:21]} Rd5 {[%emt 0:00:09]} 61. Ke6 {[%emt 0:00:47]} Rxd7 {[%emt 0:00:51]} 62. Kxd7 {[%emt 0:00:05]} Kg3 {[%emt 0:01:08]} 63. Bh6 {[%emt 0:00:42]} Kxh3 {[%emt 0:00:08]} 64. Kc6 {[%emt 0:00:08]} 1-0

[Event "Reykjavik Open 2025"]
[Site "Reykjavik"]
[Date "2025.04.14"]
[Round "8.42"]
[White "Pattnayak Nilsu"]
[Black "Akesson, Ralf"]
[Result "1-0"]
[Annotator "RC"]
[ECO "B41"]
[WhiteElo "2146"]
[BlackElo "2361"]
[PlyCount "53"]
[EventDate "2025.04.09"]
[EventType "swiss"]
[EventCountry "ISL"]
[SourceTitle "playchess.com"]
[Source "ChessBase"]
[SourceQuality "1"]
[TimeControl "40/5400+30:1800+30"]

1. e4 {[%emt 0:00:30]} c5 {[%emt 0:01:23]} 2. Nf3 {[%emt 0:00:14]} e6 {[%emt 0:00:19]} 3. c4 {[%emt 0:00:47]} Nc6 {[%emt 0:00:28]} 4. Nc3 {[%emt 0:00:22]} Nf6 {[%emt 0:01:20]} 5. d4 {[%emt 0:00:14]} cxd4 {[%emt 0:00:11]} 6. Nxd4 {[%emt 0:00:06]} Qc7 {[%emt 0:01:41]} 7. Be2 {[%emt 0:01:40]} a6 {[%emt 0:04:22]} 8. O-O {[%emt 0:03:37]} Bc5 {[%emt 0:09:20]} 9. Be3 {[%emt 0:06:59]} d6 {[%emt 0:02:38]} 10. a3 {[%emt 0:07:31]} e5 {[%emt 0:07:56]} 11. Nxc6 {[%emt 0:12:02]} Bxe3 {[%emt 0:04:42]} 12. Nxe5 {[%emt 0:07:11]} Bxf2+ {[%emt 0:03:41]} 13. Rxf2 {[%emt 0:00:08]} dxe5 {[%emt 0:00:08]} 14. Qa4+ {[%emt 0:21:27]} Bd7 {[%emt 0:01:55]} 15. Qb4 {[%emt 0:00:05]} a5 {[%emt 0:09:32]} 16. Nb5 {[%emt 0:02:38]} Qc6 {[%emt 0:06:44]} 17. Nd6+ {[%emt 0:06:51]} Kf8 {[%emt 0:01:50]} 18. Qd2 {[%emt 0:00:08]} Be6 {[%emt 0:00:52]} 19. Rf3 {[%emt 0:07:28]} Rd8 {[%emt 0:06:42]} 20. Rd1 {[%emt 0:09:20]} Nxe4 {[%emt 0:02:31]} 21. Qxa5 {[%emt 0:00:05]} Rxd6 {[%emt 0:01:00]} 22. Qxe5 {[%emt 0:01:12]} Rxd1+ {[%emt 0:02:16]} 23. Bxd1 {[%emt 0:00:04]} Qb6+ {[%emt 0:03:22]} 24. Kh1 {[%emt 0:00:12]} Nf2+ {[%emt 0:01:20]} 25. Rxf2 {[%emt 0:00:05]} Qxf2 {[%emt 0:00:08]} 26. Qd6+ {[%emt 0:00:02]} Ke8 {[%emt 0:00:09]} 27. Ba4+ {[%emt 0:01:28]} 1-0